[Event "Early-Titled-Tuesday-Blitz-September-05-2023"]
[Site "Chess.com"]
[Date "2023.09.05"]
[Round "7"]
[White "Taran2004"]
[Black "Boundless_Strike"]
[Result "0-1"]
[WhiteElo "2357"]
[BlackElo "2541"]
[TimeControl "180+1"]
[EndTime "9:16:18 PDT"]
[Termination "Boundless_Strike won by resignation"]

1. e4 {[%clk 0:03:00.9]} 1... d6 {[%clk 0:03:00.2]} 2. d4 {[%clk 0:03:00.6]}
2... e5 {[%clk 0:03:00.8]} 3. Nf3 {[%clk 0:02:55.6]} 3... Bg4 {[%clk 0:03:00.5]}
4. dxe5 {[%clk 0:02:55.1]} 4... Nc6 {[%clk 0:03:00.5]} 5. exd6 {[%clk
0:02:54.2]} 5... Bxd6 {[%clk 0:03:00.8]} 6. Nc3 {[%clk 0:02:54.5]} 6... Qe7
{[%clk 0:03:00.8]} 7. h3 {[%clk 0:02:52.1]} 7... Bh5 {[%clk 0:02:59.9]} 8. Bd3
{[%clk 0:02:51.9]} 8... O-O-O {[%clk 0:02:58.9]} 9. Be3 {[%clk 0:02:49.2]} 9...
Nf6 {[%clk 0:02:51.6]} 10. Qd2 {[%clk 0:02:48.2]} 10... Bb4 {[%clk 0:02:49.8]}
11. a3 {[%clk 0:02:47.3]} 11... Nxe4 {[%clk 0:02:44.4]} 12. Bxe4 {[%clk
0:02:29.4]} 12... Rxd2 {[%clk 0:02:41.8]} 13. Bf5+ {[%clk 0:02:26.4]} 13... Kb8
{[%clk 0:01:48.2]} 14. Nxd2 {[%clk 0:02:19.7]} 14... Bxc3 {[%clk 0:01:45.1]} 15.
bxc3 {[%clk 0:02:20.6]} 15... Bg6 {[%clk 0:01:08.6]} 16. Bxg6 {[%clk 0:02:19.2]}
16... hxg6 {[%clk 0:01:08.6]} 17. O-O {[%clk 0:02:19.7]} 17... Qe5 {[%clk
0:01:04.7]} 18. c4 {[%clk 0:02:14.1]} 18... Qc3 {[%clk 0:01:03]} 19. a4 {[%clk
0:02:08.9]} 19... Re8 {[%clk 0:00:54.6]} 20. Nf3 {[%clk 0:01:59.6]} 20... Qxc4
{[%clk 0:00:51.3]} 21. a5 {[%clk 0:01:59.6]} 21... a6 {[%clk 0:00:51.3]} 22.
Rab1 {[%clk 0:01:59.2]} 22... Nxa5 {[%clk 0:00:46.8]} 23. Nd4 {[%clk 0:01:55.8]}
23... Nc6 {[%clk 0:00:46.4]} 24. Nb3 {[%clk 0:01:54.3]} 24... Kc8 {[%clk
0:00:40.8]} 25. Rfe1 {[%clk 0:01:37.2]} 25... b6 {[%clk 0:00:38]} 26. Nd2 {[%clk
0:01:35.4]} 26... Qe6 {[%clk 0:00:27.8]} 27. Nf3 {[%clk 0:01:30.7]} 27... Qf5
{[%clk 0:00:27.7]} 28. c4 {[%clk 0:01:27.5]} 28... a5 {[%clk 0:00:19.9]} 29. c5
{[%clk 0:01:27.3]} 29... bxc5 {[%clk 0:00:20.4]} 30. Rb5 {[%clk 0:01:21.5]}
30... a4 {[%clk 0:00:09.6]} 31. Rxc5 {[%clk 0:01:20.9]} 31... Qd7 {[%clk
0:00:08.1]} 32. Rec1 {[%clk 0:01:20.4]} 32... Re6 {[%clk 0:00:08.7]} 33. R5c4
{[%clk 0:01:16.3]} 33... Rd6 {[%clk 0:00:08.9]} 34. R1c2 {[%clk 0:01:10.9]}
34... Na5 {[%clk 0:00:08.4]} 35. R4c3 {[%clk 0:01:07.7]} 35... Rc6 {[%clk
0:00:09]} 36. Rxc6 {[%clk 0:01:06.6]} 36... Nxc6 {[%clk 0:00:09]} 37. Rc4 {[%clk
0:01:06.1]} 37... a3 {[%clk 0:00:09]} 38. Rc1 {[%clk 0:01:04.9]} 38... Nb4
{[%clk 0:00:07.7]} 39. Nd4 {[%clk 0:01:04.2]} 39... Qd5 {[%clk 0:00:06.6]} 40.
Ra1 {[%clk 0:01:02]} 40... a2 {[%clk 0:00:06.7]} 41. g3 {[%clk 0:01:00.6]} 41...
c5 {[%clk 0:00:07]} 42. Nb5 {[%clk 0:00:59.9]} 42... Nc2 {[%clk 0:00:03]} 43.
Nc3 {[%clk 0:00:58.3]} 43... Nxa1 {[%clk 0:00:03.1]} 44. Nxd5 {[%clk 0:00:58]}
44... Nb3 {[%clk 0:00:03.8]} 45. Bf4 {[%clk 0:00:56]} 45... a1=Q+ {[%clk
0:00:03.6]} 0-1

[Event "Early-Titled-Tuesday-Blitz-September-05-2023"]
[Site "Chess.com"]
[Date "2023.09.05"]
[Round "7"]
[White "DarZay"]
[Black "NigelDwarf"]
[Result "1-0"]
[WhiteElo "2273"]
[BlackElo "2532"]
[TimeControl "180+1"]
[EndTime "9:16:20 PDT"]
[Termination "DarZay won by checkmate"]

1. e4 {[%clk 0:02:57.7]} 1... c5 {[%clk 0:02:58]} 2. Nf3 {[%clk 0:02:56.3]} 2...
d6 {[%clk 0:02:56.6]} 3. d4 {[%clk 0:02:56.7]} 3... Nf6 {[%clk 0:02:56.6]} 4.
Nc3 {[%clk 0:02:54]} 4... cxd4 {[%clk 0:02:56.8]} 5. Nxd4 {[%clk 0:02:54.3]}
5... a6 {[%clk 0:02:56.8]} 6. Be2 {[%clk 0:02:49.1]} 6... e5 {[%clk 0:02:55.9]}
7. Nb3 {[%clk 0:02:48.2]} 7... Be7 {[%clk 0:02:56.3]} 8. O-O {[%clk 0:02:47.6]}
8... O-O {[%clk 0:02:56.5]} 9. a3 {[%clk 0:02:47.3]} 9... b5 {[%clk 0:02:54.3]}
10. Be3 {[%clk 0:02:46.3]} 10... Bb7 {[%clk 0:02:53.9]} 11. f3 {[%clk 0:02:45]}
11... Nbd7 {[%clk 0:02:52.7]} 12. Nd2 {[%clk 0:02:30.7]} 12... Rc8 {[%clk
0:02:45.1]} 13. Qe1 {[%clk 0:02:22.8]} 13... d5 {[%clk 0:02:30.1]} 14. exd5
{[%clk 0:02:19.7]} 14... Nxd5 {[%clk 0:02:25.9]} 15. Nxd5 {[%clk 0:02:19.8]}
15... Bxd5 {[%clk 0:02:26.8]} 16. Bd3 {[%clk 0:02:18.5]} 16... Nc5 {[%clk
0:02:22]} 17. Be4 {[%clk 0:02:11.8]} 17... Na4 {[%clk 0:02:08.3]} 18. Qg3 {[%clk
0:01:27.9]} 18... Bxe4 {[%clk 0:01:14.1]} 19. Nxe4 {[%clk 0:01:23.9]} 19... Bh4
{[%clk 0:01:06.4]} 20. Qxe5 {[%clk 0:01:20]} 20... Re8 {[%clk 0:01:03.2]} 21.
Qd6 {[%clk 0:01:16.2]} 21... Rxc2 {[%clk 0:00:55]} 22. Bf4 {[%clk 0:00:55.7]}
22... Qxd6 {[%clk 0:00:48.4]} 23. Bxd6 {[%clk 0:00:50.2]} 23... f5 {[%clk
0:00:47.7]} 24. Ng3 {[%clk 0:00:46.8]} 24... Bxg3 {[%clk 0:00:35.5]} 25. Bxg3
{[%clk 0:00:46.8]} 25... f4 {[%clk 0:00:36.1]} 26. Bxf4 {[%clk 0:00:40.4]} 26...
Ree2 {[%clk 0:00:35.3]} 27. Rad1 {[%clk 0:00:35.5]} 27... Rxg2+ {[%clk
0:00:33.3]} 28. Kh1 {[%clk 0:00:35.9]} 28... Nxb2 {[%clk 0:00:33.5]} 29. Rd7
{[%clk 0:00:32.7]} 29... h5 {[%clk 0:00:19.9]} 30. Re1 {[%clk 0:00:32.2]} 30...
Rgf2 {[%clk 0:00:13.5]} 31. Rg1 {[%clk 0:00:24.1]} 31... Rxf3 {[%clk 0:00:07.9]}
32. Rgxg7+ {[%clk 0:00:23.4]} 32... Kh8 {[%clk 0:00:08.1]} 33. Rh7+ {[%clk
0:00:23.3]} 33... Kg8 {[%clk 0:00:08.5]} 34. Rdg7+ {[%clk 0:00:23]} 34... Kf8
{[%clk 0:00:07.4]} 35. Bd6+ {[%clk 0:00:23]} 35... Ke8 {[%clk 0:00:07.8]} 36.
Rg8+ {[%clk 0:00:22.8]} 36... Rf8 {[%clk 0:00:08.6]} 37. Rxf8# {[%clk
0:00:23.3]} 1-0

[Event "Early-Titled-Tuesday-Blitz-September-05-2023"]
[Site "Chess.com"]
[Date "2023.09.05"]
[Round "7"]
[White "Beca95"]
[Black "assezde36"]
[Result "0-1"]
[WhiteElo "2976"]
[BlackElo "2805"]
[TimeControl "180+1"]
[EndTime "9:16:23 PDT"]
[Termination "assezde36 won by resignation"]

1. d4 {[%clk 0:03:00.9]} 1... Nf6 {[%clk 0:02:59.8]} 2. c4 {[%clk 0:03:01.6]}
2... e6 {[%clk 0:02:59.6]} 3. Nc3 {[%clk 0:03:01]} 3... Bb4 {[%clk 0:03:00.2]}
4. Qc2 {[%clk 0:03:00.3]} 4... O-O {[%clk 0:02:59.5]} 5. Nf3 {[%clk 0:02:59.4]}
5... b6 {[%clk 0:02:57]} 6. e4 {[%clk 0:02:58.3]} 6... Bxc3+ {[%clk 0:02:50.8]}
7. bxc3 {[%clk 0:02:57.7]} 7... d6 {[%clk 0:02:51.5]} 8. Bd3 {[%clk 0:02:49]}
8... e5 {[%clk 0:02:48.4]} 9. Bg5 {[%clk 0:02:46.3]} 9... h6 {[%clk 0:02:47.6]}
10. Bh4 {[%clk 0:02:46.3]} 10... Nc6 {[%clk 0:02:23.9]} 11. h3 {[%clk
0:02:19.5]} 11... exd4 {[%clk 0:02:11.1]} 12. Nxd4 {[%clk 0:02:12.4]} 12... Ne5
{[%clk 0:02:11.3]} 13. O-O {[%clk 0:02:11.5]} 13... Ng6 {[%clk 0:01:58.3]} 14.
Bg3 {[%clk 0:02:09.3]} 14... Nh5 {[%clk 0:01:56.2]} 15. Bh2 {[%clk 0:02:09.2]}
15... Qg5 {[%clk 0:01:48.9]} 16. Kh1 {[%clk 0:01:56.2]} 16... Nhf4 {[%clk
0:01:36.8]} 17. Rg1 {[%clk 0:01:47]} 17... Bd7 {[%clk 0:01:21.3]} 18. Bf1 {[%clk
0:01:42]} 18... Qh5 {[%clk 0:01:13.4]} 19. Qd2 {[%clk 0:01:35]} 19... Qg5 {[%clk
0:01:05.6]} 20. g3 {[%clk 0:01:08.6]} 20... Nxh3 {[%clk 0:00:56.6]} 21. f4
{[%clk 0:01:08.3]} 21... Qh5 {[%clk 0:00:43.2]} 22. Rg2 {[%clk 0:01:07.7]} 22...
Bg4 {[%clk 0:00:40.9]} 23. Re1 {[%clk 0:00:59.7]} 23... Rae8 {[%clk 0:00:38.8]}
24. Bd3 {[%clk 0:00:58.1]} 24... c5 {[%clk 0:00:34.4]} 25. Nf5 {[%clk
0:00:56.2]} 25... Bf3 {[%clk 0:00:15.6]} 26. Nxd6 {[%clk 0:00:52.9]} 26... Rd8
{[%clk 0:00:15]} 27. e5 {[%clk 0:00:53.4]} 27... Qg4 {[%clk 0:00:11.2]} 28. Bf1
{[%clk 0:00:49.1]} 28... Rd7 {[%clk 0:00:09.8]} 29. Re3 {[%clk 0:00:46]} 29...
Rfd8 {[%clk 0:00:09.6]} 30. Rxf3 {[%clk 0:00:28.3]} 30... Qxf3 {[%clk
0:00:09.8]} 31. Qe2 {[%clk 0:00:28.8]} 31... Qc6 {[%clk 0:00:07.3]} 32. Qg4
{[%clk 0:00:23.3]} 32... Nf2+ {[%clk 0:00:07.1]} 0-1

[Event "Early-Titled-Tuesday-Blitz-September-05-2023"]
[Site "Chess.com"]
[Date "2023.09.05"]
[Round "7"]
[White "Fandorine"]
[Black "dosto07"]
[Result "1-0"]
[WhiteElo "2901"]
[BlackElo "2506"]
[TimeControl "180+1"]
[EndTime "9:16:23 PDT"]
[Termination "Fandorine won by checkmate"]

1. c4 {[%clk 0:03:00.9]} 1... e5 {[%clk 0:02:59.5]} 2. g3 {[%clk 0:03:00.9]}
2... Nf6 {[%clk 0:02:59.6]} 3. Bg2 {[%clk 0:03:01.1]} 3... d5 {[%clk 0:02:59.2]}
4. cxd5 {[%clk 0:03:01.5]} 4... Nxd5 {[%clk 0:02:59.5]} 5. Nf3 {[%clk 0:03:02]}
5... Nc6 {[%clk 0:02:59.3]} 6. O-O {[%clk 0:03:01.6]} 6... Nb6 {[%clk
0:02:58.3]} 7. b3 {[%clk 0:02:58.2]} 7... Be7 {[%clk 0:02:57]} 8. Bb2 {[%clk
0:02:58.1]} 8... f6 {[%clk 0:02:57]} 9. Qc1 {[%clk 0:02:57.1]} 9... O-O {[%clk
0:02:55.9]} 10. Rd1 {[%clk 0:02:44.5]} 10... Bg4 {[%clk 0:02:52.8]} 11. Nc3
{[%clk 0:02:44.6]} 11... Qd7 {[%clk 0:02:49.8]} 12. Ne4 {[%clk 0:02:38]} 12...
f5 {[%clk 0:02:25.6]} 13. Nc5 {[%clk 0:02:12.3]} 13... Bxc5 {[%clk 0:02:24.9]}
14. Qxc5 {[%clk 0:02:13.2]} 14... e4 {[%clk 0:02:24.9]} 15. Ne5 {[%clk
0:02:11.3]} 15... Nxe5 {[%clk 0:02:22.5]} 16. Bxe5 {[%clk 0:02:11]} 16... Bxe2
{[%clk 0:02:13.7]} 17. Re1 {[%clk 0:02:11]} 17... Bd3 {[%clk 0:01:56.1]} 18.
Qxc7 {[%clk 0:02:02.2]} 18... Rac8 {[%clk 0:01:54]} 19. Qxd7 {[%clk 0:02:01.1]}
19... Nxd7 {[%clk 0:01:53.7]} 20. Bc3 {[%clk 0:02:01.8]} 20... Rfe8 {[%clk
0:01:27.3]} 21. f3 {[%clk 0:02:01.8]} 21... Nc5 {[%clk 0:01:25]} 22. Bd4 {[%clk
0:01:54.7]} 22... b6 {[%clk 0:01:20.1]} 23. Bxc5 {[%clk 0:01:37.9]} 23... Rxc5
{[%clk 0:01:19]} 24. fxe4 {[%clk 0:01:37.6]} 24... fxe4 {[%clk 0:01:15.3]} 25.
Rac1 {[%clk 0:01:37.7]} 25... Ree5 {[%clk 0:00:56.6]} 26. Kf2 {[%clk 0:01:34.4]}
26... g5 {[%clk 0:00:42.6]} 27. Ke3 {[%clk 0:01:33.4]} 27... Ra5 {[%clk
0:00:29]} 28. Rc8+ {[%clk 0:01:22.2]} 28... Kf7 {[%clk 0:00:27.2]} 29. a4 {[%clk
0:00:52.2]} 29... b5 {[%clk 0:00:26.7]} 30. Rc7+ {[%clk 0:00:45.3]} 30... Kg6
{[%clk 0:00:21.8]} 31. Rec1 {[%clk 0:00:42.6]} 31... Ra6 {[%clk 0:00:08.1]} 32.
R1c6+ {[%clk 0:00:35.6]} 32... Rxc6 {[%clk 0:00:07.2]} 33. Rxc6+ {[%clk
0:00:36.5]} 33... Kf5 {[%clk 0:00:05.9]} 34. Rh6 {[%clk 0:00:24.7]} 34... bxa4
{[%clk 0:00:04.3]} 35. g4+ {[%clk 0:00:24.2]} 35... Kxg4 {[%clk 0:00:02.1]} 36.
Bh3# {[%clk 0:00:25.1]} 1-0

[Event "Early-Titled-Tuesday-Blitz-September-05-2023"]
[Site "Chess.com"]
[Date "2023.09.05"]
[Round "7"]
[White "Jospem"]
[Black "BlueWizzard"]
[Result "0-1"]
[WhiteElo "3039"]
[BlackElo "2916"]
[TimeControl "180+1"]
[EndTime "9:16:27 PDT"]
[Termination "BlueWizzard won on time"]

1. e4 {[%clk 0:03:00.9]} 1... e5 {[%clk 0:02:55.8]} 2. Nf3 {[%clk 0:03:01.4]}
2... Nc6 {[%clk 0:02:55.9]} 3. Nc3 {[%clk 0:03:02.2]} 3... Bb4 {[%clk
0:02:54.8]} 4. Bc4 {[%clk 0:03:01.3]} 4... Nf6 {[%clk 0:02:49.6]} 5. d3 {[%clk
0:02:59.3]} 5... h6 {[%clk 0:02:47.9]} 6. O-O {[%clk 0:02:59.2]} 6... d6 {[%clk
0:02:48.1]} 7. h3 {[%clk 0:02:52.4]} 7... g5 {[%clk 0:02:46.1]} 8. Nh2 {[%clk
0:02:47.7]} 8... Rg8 {[%clk 0:02:35.8]} 9. Nd5 {[%clk 0:02:47.9]} 9... g4 {[%clk
0:02:31.4]} 10. Nxf6+ {[%clk 0:02:36.1]} 10... Qxf6 {[%clk 0:02:32.3]} 11. Nxg4
{[%clk 0:02:36.6]} 11... Bxg4 {[%clk 0:02:30.5]} 12. hxg4 {[%clk 0:02:37.5]}
12... Bc5 {[%clk 0:02:27.8]} 13. c3 {[%clk 0:02:25.4]} 13... Qh4 {[%clk
0:02:21]} 14. Qf3 {[%clk 0:02:12.9]} 14... Nd8 {[%clk 0:02:16.4]} 15. g3 {[%clk
0:02:05.5]} 15... Qh3 {[%clk 0:02:08.1]} 16. b4 {[%clk 0:01:38.9]} 16... Bb6
{[%clk 0:02:04.5]} 17. Be3 {[%clk 0:01:08.1]} 17... Rxg4 {[%clk 0:01:37.1]} 18.
Bxb6 {[%clk 0:01:03.5]} 18... axb6 {[%clk 0:01:38]} 19. Qg2 {[%clk 0:01:01.8]}
19... Qh5 {[%clk 0:01:35]} 20. Bb3 {[%clk 0:00:57.5]} 20... Qg6 {[%clk
0:01:27.9]} 21. d4 {[%clk 0:00:52.9]} 21... f6 {[%clk 0:01:15]} 22. dxe5 {[%clk
0:00:53]} 22... fxe5 {[%clk 0:01:15.9]} 23. Bd1 {[%clk 0:00:47.4]} 23... Rg5
{[%clk 0:01:14.1]} 24. Bb3 {[%clk 0:00:39.8]} 24... Ne6 {[%clk 0:01:04]} 25.
Bxe6 {[%clk 0:00:39.4]} 25... Qxe6 {[%clk 0:01:04.9]} 26. a4 {[%clk 0:00:36.1]}
26... h5 {[%clk 0:01:03.3]} 27. Rfe1 {[%clk 0:00:33.9]} 27... h4 {[%clk
0:01:02]} 28. Re3 {[%clk 0:00:34.6]} 28... Qd7 {[%clk 0:00:59.3]} 29. a5 {[%clk
0:00:32.1]} 29... Ke7 {[%clk 0:00:55.8]} 30. Kf1 {[%clk 0:00:24.6]} 30... bxa5
{[%clk 0:00:52.6]} 31. Qh2 {[%clk 0:00:22.2]} 31... h3 {[%clk 0:00:51.4]} 32. g4
{[%clk 0:00:20.8]} 32... Qb5+ {[%clk 0:00:37]} 33. Ke1 {[%clk 0:00:18.8]} 33...
Rxg4 {[%clk 0:00:37.5]} 34. Qxh3 {[%clk 0:00:17.4]} 34... Rg1+ {[%clk
0:00:35.9]} 35. Kd2 {[%clk 0:00:17.8]} 35... Rxa1 {[%clk 0:00:36.8]} 36. Qh7+
{[%clk 0:00:17.9]} 36... Kd8 {[%clk 0:00:37.2]} 37. Qh4+ {[%clk 0:00:11.5]}
37... Kd7 {[%clk 0:00:36.8]} 38. Qh3+ {[%clk 0:00:11.1]} 38... Kc6 {[%clk
0:00:37.1]} 39. Qe6 {[%clk 0:00:10.2]} 39... axb4 {[%clk 0:00:35.8]} 40. cxb4
{[%clk 0:00:08.4]} 40... R8a2+ {[%clk 0:00:36.4]} 41. Kc3 {[%clk 0:00:08.6]}
41... Rc1+ {[%clk 0:00:36.1]} 0-1

[Event "Early-Titled-Tuesday-Blitz-September-05-2023"]
[Site "Chess.com"]
[Date "2023.09.05"]
[Round "7"]
[White "Andrei_Skvortsov"]
[Black "guillembaches"]
[Result "1/2-1/2"]
[WhiteElo "2638"]
[BlackElo "2526"]
[TimeControl "180+1"]
[EndTime "9:16:27 PDT"]
[Termination "Game drawn - insufficient material"]

1. e4 {[%clk 0:03:00.9]} 1... d5 {[%clk 0:02:59.9]} 2. e5 {[%clk 0:02:59.3]}
2... c5 {[%clk 0:02:58.5]} 3. c3 {[%clk 0:02:59.1]} 3... d4 {[%clk 0:02:55.4]}
4. cxd4 {[%clk 0:02:59]} 4... cxd4 {[%clk 0:02:53.1]} 5. Bb5+ {[%clk 0:02:59.3]}
5... Nc6 {[%clk 0:02:48.9]} 6. Bxc6+ {[%clk 0:02:58.3]} 6... bxc6 {[%clk
0:02:48.9]} 7. Nf3 {[%clk 0:02:58.7]} 7... Qd5 {[%clk 0:02:37]} 8. O-O {[%clk
0:02:58.2]} 8... Bg4 {[%clk 0:02:27.6]} 9. d3 {[%clk 0:02:58.4]} 9... Bxf3
{[%clk 0:02:26.3]} 10. Qxf3 {[%clk 0:02:59.3]} 10... Qxf3 {[%clk 0:02:21.2]} 11.
gxf3 {[%clk 0:03:00.2]} 11... Nh6 {[%clk 0:02:15.6]} 12. Bxh6 {[%clk 0:02:57.7]}
12... gxh6 {[%clk 0:02:16.5]} 13. Nd2 {[%clk 0:02:57.9]} 13... Rg8+ {[%clk
0:02:15.2]} 14. Kh1 {[%clk 0:02:58.4]} 14... f5 {[%clk 0:02:11.3]} 15. Nb3
{[%clk 0:02:53.5]} 15... Rd8 {[%clk 0:01:59.4]} 16. Rac1 {[%clk 0:02:53]} 16...
Rg6 {[%clk 0:01:58.2]} 17. Rg1 {[%clk 0:02:49.1]} 17... Re6 {[%clk 0:01:40.1]}
18. f4 {[%clk 0:02:43.6]} 18... h5 {[%clk 0:01:40]} 19. Rg5 {[%clk 0:02:41.8]}
19... Bh6 {[%clk 0:01:30.9]} 20. Rxf5 {[%clk 0:02:40.9]} 20... Rg6 {[%clk
0:01:30.8]} 21. Rg1 {[%clk 0:02:34.9]} 21... Rd5 {[%clk 0:01:12.6]} 22. Rxh5
{[%clk 0:02:30.1]} 22... Bxf4 {[%clk 0:01:11.7]} 23. Rxh7 {[%clk 0:02:29.8]}
23... Rxg1+ {[%clk 0:01:07.9]} 24. Kxg1 {[%clk 0:02:30.7]} 24... Bxe5 {[%clk
0:01:06.4]} 25. Rh5 {[%clk 0:02:23.4]} 25... Kf7 {[%clk 0:00:57.4]} 26. f4
{[%clk 0:02:18.4]} 26... Bxf4 {[%clk 0:00:49.3]} 27. Rxd5 {[%clk 0:02:18.5]}
27... cxd5 {[%clk 0:00:49.7]} 28. Kg2 {[%clk 0:02:18.9]} 28... e5 {[%clk
0:00:46.4]} 29. Nc5 {[%clk 0:02:11.9]} 29... Kg6 {[%clk 0:00:40]} 30. h3 {[%clk
0:02:11.2]} 30... Kf5 {[%clk 0:00:36.9]} 31. Kf3 {[%clk 0:02:10.9]} 31... Bc1
{[%clk 0:00:31.9]} 32. b3 {[%clk 0:02:06.9]} 32... Ba3 {[%clk 0:00:30.7]} 33.
Nb7 {[%clk 0:01:55.1]} 33... e4+ {[%clk 0:00:26.1]} 34. Ke2 {[%clk 0:01:54.7]}
34... Kf4 {[%clk 0:00:14.5]} 35. Nd8 {[%clk 0:01:51.7]} 35... Kg3 {[%clk
0:00:13]} 36. Ne6 {[%clk 0:01:48]} 36... Bb2 {[%clk 0:00:13.1]} 37. Nc7 {[%clk
0:01:47.6]} 37... Kxh3 {[%clk 0:00:13.2]} 38. Nxd5 {[%clk 0:01:46.5]} 38... e3
{[%clk 0:00:13.2]} 39. Nb4 {[%clk 0:01:39.4]} 39... Kg4 {[%clk 0:00:12]} 40. Nc6
{[%clk 0:01:39.4]} 40... a5 {[%clk 0:00:09.7]} 41. Nxa5 {[%clk 0:01:39]} 41...
Kf5 {[%clk 0:00:10.1]} 42. Nc4 {[%clk 0:01:37.6]} 42... Bc3 {[%clk 0:00:10.1]}
43. a4 {[%clk 0:01:38]} 43... Ke6 {[%clk 0:00:10.4]} 44. Na3 {[%clk 0:01:23.1]}
44... Kd5 {[%clk 0:00:10.3]} 45. Nb5 {[%clk 0:01:23.7]} 45... Bb4 {[%clk
0:00:09.5]} 46. Kf3 {[%clk 0:01:23.2]} 46... Kc5 {[%clk 0:00:09.1]} 47. Nc7
{[%clk 0:01:22.1]} 47... Kd6 {[%clk 0:00:08.1]} 48. Ne8+ {[%clk 0:01:20.6]}
48... Kc5 {[%clk 0:00:07.3]} 49. Ng7 {[%clk 0:01:16.3]} 49... Bc3 {[%clk
0:00:07.4]} 50. a5 {[%clk 0:01:10.5]} 50... Bxa5 {[%clk 0:00:06.5]} 51. Ne6+
{[%clk 0:01:10.8]} 51... Kb4 {[%clk 0:00:06.7]} 52. Nxd4 {[%clk 0:01:10.9]}
52... Kc3 {[%clk 0:00:06.7]} 53. Ke4 {[%clk 0:01:06.9]} 53... Bb6 {[%clk
0:00:05.7]} 54. Ne2+ {[%clk 0:01:05.8]} 54... Kxb3 {[%clk 0:00:05.6]} 55. d4
{[%clk 0:01:06.3]} 55... Bxd4 {[%clk 0:00:05.3]} 56. Kxd4 {[%clk 0:01:07]} 56...
Ka4 {[%clk 0:00:05.9]} 57. Kxe3 {[%clk 0:01:07.5]} 1/2-1/2

[Event "Early-Titled-Tuesday-Blitz-September-05-2023"]
[Site "Chess.com"]
[Date "2023.09.05"]
[Round "7"]
[White "Fengwi"]
[Black "Khromkin"]
[Result "1-0"]
[WhiteElo "2383"]
[BlackElo "2389"]
[TimeControl "180+1"]
[EndTime "9:16:27 PDT"]
[Termination "Fengwi won on time"]

1. Nf3 {[%clk 0:02:46.1]} 1... c5 {[%clk 0:02:58.9]} 2. b3 {[%clk 0:02:36]} 2...
Nc6 {[%clk 0:02:58.6]} 3. Bb2 {[%clk 0:02:34.5]} 3... d6 {[%clk 0:02:59]} 4. d4
{[%clk 0:02:34.5]} 4... cxd4 {[%clk 0:02:57.8]} 5. Nxd4 {[%clk 0:02:35.4]} 5...
Nf6 {[%clk 0:02:42.2]} 6. g3 {[%clk 0:02:26.8]} 6... Qa5+ {[%clk 0:02:40.8]} 7.
Qd2 {[%clk 0:02:15.8]} 7... Qxd2+ {[%clk 0:02:36.8]} 8. Nxd2 {[%clk 0:02:15.5]}
8... Bd7 {[%clk 0:02:35]} 9. Bg2 {[%clk 0:02:14.6]} 9... Rc8 {[%clk 0:02:34]}
10. c4 {[%clk 0:02:06.2]} 10... Nxd4 {[%clk 0:02:33.2]} 11. Bxd4 {[%clk
0:02:05.6]} 11... Bc6 {[%clk 0:02:33.7]} 12. Bxc6+ {[%clk 0:01:51.7]} 12... bxc6
{[%clk 0:02:33.4]} 13. O-O {[%clk 0:01:28.3]} 13... c5 {[%clk 0:02:31.1]} 14.
Bxf6 {[%clk 0:01:28.1]} 14... gxf6 {[%clk 0:02:29.6]} 15. e4 {[%clk 0:01:22.4]}
15... h5 {[%clk 0:02:17.6]} 16. Nf3 {[%clk 0:01:21.5]} 16... e6 {[%clk
0:02:12.1]} 17. Rad1 {[%clk 0:01:13.4]} 17... Be7 {[%clk 0:02:10.8]} 18. Nh4
{[%clk 0:01:10.9]} 18... Kd7 {[%clk 0:02:06]} 19. f4 {[%clk 0:01:08]} 19... Kc6
{[%clk 0:02:06.4]} 20. f5 {[%clk 0:01:06.4]} 20... Rhg8 {[%clk 0:01:57.3]} 21.
Ng2 {[%clk 0:01:01]} 21... Rg4 {[%clk 0:01:46]} 22. Rf4 {[%clk 0:00:58.7]} 22...
a5 {[%clk 0:01:41]} 23. Kf2 {[%clk 0:00:43.7]} 23... a4 {[%clk 0:01:38.4]} 24.
h3 {[%clk 0:00:31.5]} 24... Rg5 {[%clk 0:01:28.3]} 25. h4 {[%clk 0:00:30.4]}
25... Rgg8 {[%clk 0:01:26.7]} 26. Rf3 {[%clk 0:00:25.8]} 26... axb3 {[%clk
0:01:21.6]} 27. axb3 {[%clk 0:00:12.3]} 27... Kd7 {[%clk 0:00:21]} 28. Nf4
{[%clk 0:00:11.7]} 28... Rh8 {[%clk 0:00:17.9]} 29. Ra1 {[%clk 0:00:12.3]} 29...
Ra8 {[%clk 0:00:06.8]} 30. Rxa8 {[%clk 0:00:10.5]} 30... Rxa8 {[%clk 0:00:07.4]}
31. Nxh5 {[%clk 0:00:10.6]} 1-0

[Event "Early-Titled-Tuesday-Blitz-September-05-2023"]
[Site "Chess.com"]
[Date "2023.09.05"]
[Round "7"]
[White "NowInChess"]
[Black "Chessdude1987"]
[Result "0-1"]
[WhiteElo "2267"]
[BlackElo "2432"]
[TimeControl "180+1"]
[EndTime "9:16:33 PDT"]
[Termination "Chessdude1987 won on time"]

1. e4 {[%clk 0:02:56.8]} 1... e6 {[%clk 0:03:00.2]} 2. d4 {[%clk 0:02:54.4]}
2... d5 {[%clk 0:03:00.8]} 3. exd5 {[%clk 0:02:55]} 3... exd5 {[%clk 0:03:01.4]}
4. c4 {[%clk 0:02:55.5]} 4... Nf6 {[%clk 0:03:00.8]} 5. Nc3 {[%clk 0:02:55.7]}
5... Bb4 {[%clk 0:03:00.1]} 6. Nf3 {[%clk 0:02:54.2]} 6... O-O {[%clk
0:02:59.8]} 7. Bd3 {[%clk 0:02:54.4]} 7... Nc6 {[%clk 0:02:56.2]} 8. O-O {[%clk
0:02:51.1]} 8... dxc4 {[%clk 0:02:56.2]} 9. Bxc4 {[%clk 0:02:50.7]} 9... Bg4
{[%clk 0:02:56.8]} 10. Be3 {[%clk 0:02:38]} 10... Qd7 {[%clk 0:02:51.8]} 11. a3
{[%clk 0:02:10.4]} 11... Ba5 {[%clk 0:02:51.4]} 12. Bb5 {[%clk 0:01:51.7]} 12...
Bxf3 {[%clk 0:02:32.1]} 13. Qxf3 {[%clk 0:01:49.1]} 13... Nxd4 {[%clk
0:02:32.3]} 14. Bxd4 {[%clk 0:01:35.7]} 14... Qxd4 {[%clk 0:02:32.1]} 15. Qxb7
{[%clk 0:01:24.2]} 15... Bb6 {[%clk 0:02:28.1]} 16. Qf3 {[%clk 0:01:09.4]} 16...
Ng4 {[%clk 0:02:15.2]} 17. Rad1 {[%clk 0:00:59.2]} 17... Ne5 {[%clk 0:02:02.4]}
18. Qf5 {[%clk 0:00:39.4]} 18... g6 {[%clk 0:01:56.4]} 19. Rxd4 {[%clk 0:00:33]}
19... gxf5 {[%clk 0:01:56]} 20. Rf4 {[%clk 0:00:25.9]} 20... Ng4 {[%clk
0:01:42.5]} 21. Rxf5 {[%clk 0:00:23.2]} 21... Nxf2 {[%clk 0:01:34.9]} 22. R5xf2
{[%clk 0:00:20.5]} 22... Rad8 {[%clk 0:01:30.2]} 23. Kh1 {[%clk 0:00:20.2]}
23... Bxf2 {[%clk 0:01:29.3]} 24. Rxf2 {[%clk 0:00:20.8]} 24... Rd4 {[%clk
0:01:14.6]} 25. g3 {[%clk 0:00:19.2]} 25... Rfd8 {[%clk 0:01:14]} 26. Kg2 {[%clk
0:00:19.1]} 26... Rd2 {[%clk 0:01:13.7]} 27. Ne4 {[%clk 0:00:14.3]} 27... Rxf2+
{[%clk 0:01:02.4]} 28. Kxf2 {[%clk 0:00:15.2]} 28... f5 {[%clk 0:01:02]} 29. Ng5
{[%clk 0:00:09.5]} 29... Rd2+ {[%clk 0:01:01.4]} 30. Ke3 {[%clk 0:00:09.4]}
30... Rxb2 {[%clk 0:00:56.4]} 31. Bc4+ {[%clk 0:00:09.7]} 31... Kg7 {[%clk
0:00:54.5]} 32. h4 {[%clk 0:00:09.4]} 32... h6 {[%clk 0:00:50.3]} 33. Ne6+
{[%clk 0:00:09]} 33... Kf6 {[%clk 0:00:50.5]} 34. Nxc7 {[%clk 0:00:08.8]} 34...
Ke5 {[%clk 0:00:48.5]} 35. Nb5 {[%clk 0:00:08.2]} 35... Rg2 {[%clk 0:00:44.1]}
36. Kf3 {[%clk 0:00:07.6]} 36... Rc2 {[%clk 0:00:42.1]} 37. Bd3 {[%clk
0:00:05.4]} 37... Rd2 {[%clk 0:00:39.7]} 38. Ke3 {[%clk 0:00:05.3]} 38... Ra2
{[%clk 0:00:34.9]} 39. Bc4 {[%clk 0:00:02.5]} 39... Rc2 {[%clk 0:00:29.5]} 40.
Bd3 {[%clk 0:00:02.4]} 40... Rc5 {[%clk 0:00:27.7]} 0-1